bitfinex/quotes_BTCUSD_20240729
["timestamp","ask_amount","ask_price","bid_price","bid_amount"]
[1722267317544,0.00831,67883.0,67882.0,0.87966939]
[1722267317764,0.00831,67883.0,67882.0,0.90266939]
[1722267317988,0.00831,67883.0,67882.0,1.19729739]
[1722267318227,0.00831,67883.0,67882.0,1.31662732]
[1722267318421,0.00831,67883.0,67882.0,1.46662732]
[1722267318550,0.00831,67883.0,67882.0,1.74725532]
[1722267318951,0.00831,67883.0,67882.0,1.76125532]
[1722267319221,0.00831,67883.0,67882.0,1.82505532]
[1722267319499,0.00831,67883.0,67882.0,1.81105532]
[1722267319865,0.00831,67883.0,67882.0,1.46642732]
[1722267320364,0.00831,67883.0,67882.0,1.81105532]
[1722267320564,0.0314159,67883.0,67882.0,1.82505532]
[1722267321938,0.0314159,67883.0,67882.0,2.11968332]
[1722267322137,0.0314159,67883.0,67882.0,1.82505532]
[1722267322637,0.0774,67909.0,67892.0,1.48096193]
[1722267322800,0.07154355,67903.0,67892.0,1.74706132]
[1722267322988,0.07154355,67903.0,67892.0,1.74173139]
[1722267323195,0.07154355,67903.0,67892.0,1.39714639]
[1722267323610,0.07154355,67903.0,67892.0,1.44714639]
[1722267323851,0.07154355,67903.0,67892.0,1.39714639]
[1722267324057,0.07154355,67903.0,67892.0,1.74706132]
[1722267324261,0.07154355,67903.0,67892.0,1.74173139]
[1722267325139,0.07154355,67903.0,67892.0,1.10256139]
[1722267325341,0.04467007,67902.0,67892.0,1.39714639]
[1722267325541,0.08631,67893.0,67892.0,0.14309939]
[1722267325746,0.25452362,67893.0,67892.0,0.14309939]
[1722267325943,0.25452362,67893.0,67882.0,0.014]
[1722267325944,0.04467007,67883.0,67882.0,0.014]
[1722267326233,0.23727007,67883.0,67882.0,0.15709939]
[1722267326435,0.34676101,67883.0,67882.0,0.15709939]
[1722267326658,0.36822499,67883.0,67882.0,0.15709939]
[1722267327237,0.34691181,67883.0,67882.0,0.15709939]
[1722267327448,0.23727007,67883.0,67882.0,0.15709939]
[1722267327941,0.23927007,67883.0,67882.0,0.15709939]
[1722267328096,0.37088012,67883.0,67882.0,0.014]
[1722267329466,0.1426,67883.0,67882.0,0.15709939]
[1722267329856,0.1426,67883.0,67882.0,0.18009939]
[1722267329993,0.1426,67883.0,67882.0,0.47472739]
[1722267330193,0.23727007,67883.0,67882.0,0.18009939]
[1722267330451,0.23727007,67883.0,67882.0,0.15709939]
[1722267330604,0.23927007,67883.0,67882.0,0.15709939]
[1722267330823,0.23727007,67883.0,67882.0,0.15709939]
[1722267331204,0.25888786,67883.0,67882.0,0.15709939]
[1722267331408,0.25888786,67883.0,67882.0,0.014]
[1722267331409,0.26088786,67883.0,67882.0,0.014]
[1722267331825,0.26536526,67883.0,67882.0,0.014]
[1722267332576,0.37548747,67883.0,67882.0,0.014]
[1722267332776,0.37548747,67883.0,67882.0,0.15709939]
[1722267332777,0.16869519,67883.0,67882.0,0.15709939]
[1722267332973,0.16869519,67883.0,67882.0,0.91666939]
[1722267333352,0.1426,67883.0,67882.0,0.91666939]
[1722267333674,0.09467007,67888.0,67882.0,0.91666939]
[1722267333675,0.0664,67888.0,67882.0,0.76935539]
[1722267333927,0.07985355,67893.0,67890.0,0.147297]
[1722267333928,0.0818,67891.0,67890.0,0.147297]
[1722267334112,0.0818,67891.0,67890.0,0.60799039]
[1722267334315,0.00831,67893.0,67892.0,0.441877]
[1722267334520,0.00831,67893.0,67892.0,0.90256139]
[1722267334669,0.00831,67893.0,67892.0,1.19714639]
[1722267336087,0.00831,67893.0,67892.0,1.61166132]
[1722267336295,0.00831,67893.0,67892.0,1.71166132]
[1722267336904,0.03141364,67893.0,67892.0,1.71166132]
[1722267337121,0.00831,67893.0,67892.0,1.71166132]
[1722267337840,0.0083,67913.0,67912.0,1.030743]
[1722267338047,0.0083,67913.0,67912.0,1.19684239]
[1722267338251,0.0083,67913.0,67912.0,1.00234439]
[1722267338660,0.0083,67913.0,67912.0,0.26609939]
[1722267338911,0.0083,67913.0,67912.0,0.31334839]
[1722267339124,0.0083,67913.0,67912.0,0.89544378]
[1722267339125,0.01334536,67913.0,67912.0,0.89544378]
[1722267339354,0.00834536,67913.0,67912.0,0.89544378]
[1722267339564,0.0033,67913.0,67912.0,0.89544378]
[1722267339781,0.04797007,67913.0,67912.0,0.15919878]
[1722267340005,0.0033,67913.0,67912.0,0.60249998]
[1722267340249,0.0033,67913.0,67912.0,0.89699798]
[1722267340469,0.02639895,67913.0,67912.0,0.60094578]
[1722267340672,0.02639895,67913.0,67912.0,0.89544378]
[1722267341217,0.02639895,67913.0,67912.0,0.60094578]
[1722267341218,0.0033,67913.0,67912.0,0.60094578]
[1722267341541,0.0033,67913.0,67912.0,0.45369678]
[1722267341714,0.0033,67913.0,67912.0,0.60094578]
[1722267341962,0.0033,67913.0,67912.0,0.89544378]
[1722267342978,0.09797007,67913.0,67912.0,0.15919878]
[1722267343153,0.0033,67913.0,67912.0,0.15919878]
[1722267343375,0.0033,67913.0,67912.0,0.60094578]
[1722267343376,0.00856105,67913.0,67912.0,0.60094578]
[1722267343933,0.0033,67913.0,67912.0,0.89544378]
[1722267344324,0.0033,67913.0,67912.0,0.30644778]
[1722267344617,0.02639861,67913.0,67912.0,0.60094578]
[1722267345041,0.03165812,67913.0,67912.0,0.60094578]
[1722267345248,0.02639861,67913.0,67912.0,0.61494578]
[1722267345458,0.02639861,67913.0,67912.0,0.90944378]
[1722267345675,0.02639861,67913.0,67912.0,0.61494578]
[1722267346086,0.02639861,67913.0,67912.0,0.91099798]
[1722267346319,0.02639861,67913.0,67912.0,0.61649998]
[1722267346576,0.02639861,67913.0,67912.0,0.61494578]
[1722267346791,0.12106868,67913.0,67912.0,0.17319878]
[1722267347053,0.12832881,67913.0,67912.0,0.17319878]
[1722267347283,0.12832881,67913.0,67912.0,0.014]
[1722267347284,0.27022881,67913.0,67912.0,0.014]
[1722267347499,0.28939961,67913.0,67912.0,0.014]
[1722267348406,0.28939961,67913.0,67912.0,0.17109939]
[1722267348639,0.28946013,67913.0,67912.0,0.17109939]
[1722267348873,0.27022881,67913.0,67912.0,0.028]
[1722267349425,0.27022881,67913.0,67912.0,0.014]
[1722267349426,0.30873259,67913.0,67912.0,0.014]
[1722267349651,0.31060384,67913.0,67912.0,0.014]
[1722267350141,0.29135237,67913.0,67912.0,0.014]
[1722267351091,0.09467007,67903.0,67899.0,0.0015542]
[1722267351326,0.09467007,67904.0,67899.0,0.0245542]
[1722267351555,0.09467007,67905.0,67901.0,0.294545]
[1722267351761,0.0071026,67902.0,67901.0,0.441818]
[1722267351964,0.1452,67913.0,67909.0,0.147255]
[1722267351965,0.09467007,67910.0,67909.0,0.147255]
[1722267352156,0.09467007,67910.0,67909.0,0.464766]
[1722267352364,0.09467007,67910.0,67909.0,0.31335439]
[1722267352674,0.11777063,67910.0,67909.0,0.31335439]
[1722267352977,0.11777063,67910.0,67909.0,0.16609939]
[1722267353529,0.09467007,67910.0,67909.0,0.31335439]
[1722267353723,0.09467007,67910.0,67909.0,0.16609939]
[1722267353926,0.09467007,67910.0,67909.0,0.14309939]
[1722267354284,0.09667007,67910.0,67909.0,0.14309939]
[1722267354485,0.09667007,67908.0,67907.0,0.0015542]
[1722267354705,0.09667007,67908.0,67887.0,0.1]
[1722267354706,0.09467007,67898.0,67897.0,0.147281]
[1722267354904,0.09467007,67898.0,67897.0,0.14309939]
[1722267355104,0.15927007,67898.0,67897.0,0.24309939]
[1722267355852,0.15927007,67898.0,67897.0,0.39038039]
[1722267356053,0.15927007,67898.0,67897.0,0.26609939]
[1722267356257,0.15927007,67898.0,67897.0,0.14309939]
[1722267356258,0.23717007,67898.0,67897.0,0.14309939]
[1722267356788,0.09467007,67889.0,67882.0,0.295552]
[1722267356987,0.16621362,67889.0,67888.0,0.441903]
[1722267357163,0.16621362,67889.0,67888.0,0.14309939]
[1722267357164,0.16821362,67889.0,67888.0,0.14309939]
[1722267357363,0.16621362,67889.0,67888.0,0.14309939]
[1722267357518,0.16621362,67889.0,67888.0,0.29040039]
[1722267357519,0.17329644,67889.0,67888.0,0.29040039]
[1722267357922,0.16621362,67889.0,67888.0,0.14309939]
[1722267358128,0.16621362,67889.0,67882.0,0.000924]
[1722267358129,0.15917007,67883.0,67882.0,0.000924]
[1722267358328,0.15917007,67883.0,67882.0,0.14402339]
[1722267359000,0.0645,67883.0,67882.0,0.29133739]
[1722267359223,0.0645,67883.0,67882.0,0.58596539]
[1722267359429,0.04467007,67886.0,67885.0,0.147307]
[1722267359629,0.04467007,67886.0,67885.0,0.14309939]
[1722267359826,0.1158595,67886.0,67885.0,0.14309939]
[1722267360150,0.1158595,67886.0,67885.0,0.16609939]
[1722267360333,0.1138595,67886.0,67885.0,0.16609939]
[1722267360586,0.13896773,67886.0,67885.0,0.16609939]
[1722267360802,0.13696773,67886.0,67885.0,0.14309939]
[1722267361241,0.1177783,67886.0,67885.0,0.14309939]
[1722267361665,0.1177783,67886.0,67882.0,0.000924]
[1722267361666,0.09467007,67883.0,67882.0,0.000924]
[1722267361866,0.09467007,67883.0,67882.0,0.14402339]
[1722267362071,0.1138757,67883.0,67882.0,0.000924]
[1722267362463,0.1138757,67883.0,67882.0,0.14557759]
[1722267362873,0.1138757,67883.0,67882.0,0.14402339]
[1722267363031,0.1158757,67883.0,67882.0,0.14402339]
[1722267363443,0.1158757,67883.0,67882.0,0.000924]
[1722267363840,0.2561757,67883.0,67882.0,0.000924]
[1722267364154,0.23697007,67883.0,67882.0,0.000924]
[1722267364579,0.2611379,67883.0,67882.0,0.000924]
[1722267364781,0.28227465,67883.0,67882.0,0.000924]
[1722267365621,0.44313174,67883.0,67882.0,0.000924]
[1722267365833,0.56073252,67883.0,67882.0,0.000924]
[1722267366057,0.51672969,67883.0,67882.0,0.000924]
[1722267366254,0.51672969,67883.0,67857.0,0.0015542]
[1722267366255,0.05,67865.0,67864.0,0.0015542]
[1722267366514,0.05,67865.0,67844.0,0.0657]
[1722267366515,0.09467007,67865.0,67859.0,0.0015542]
[1722267366667,0.07154355,67860.0,67859.0,0.0015542]
[1722267366876,0.12154355,67860.0,67859.0,0.0015542]
[1722267367059,0.12154355,67860.0,67846.0,0.30714297]
[1722267367060,0.15777007,67859.0,67846.0,0.30714297]
[1722267367280,0.15977007,67859.0,67838.0,0.00885643]
[1722267367632,0.15977007,67859.0,67839.0,0.294814]
[1722267367633,0.18703631,67859.0,67839.0,0.294814]
[1722267367783,0.2062252,67859.0,67839.0,0.294814]
[1722267368065,0.2062252,67859.0,67838.0,0.30367543]
[1722267368066,0.2853252,67859.0,67838.0,0.00885643]
[1722267368236,0.28329409,67859.0,67838.0,0.00885643]
[1722267368782,0.28329409,67859.0,67842.0,0.1474]
[1722267368991,0.28329409,67859.0,67843.0,0.0015042]
[1722267369195,0.28329409,67859.0,67838.0,0.00885643]
[1722267369599,0.28329409,67859.0,67848.0,0.147387]
[1722267369784,0.28329409,67859.0,67849.0,0.0015042]
[1722267369978,0.28329409,67859.0,67842.0,0.294798]
[1722267370155,0.30641532,67859.0,67845.0,0.147394]
[1722267370359,0.2641052,67859.0,67846.0,0.0015042]
[1722267370581,0.2832493,67859.0,67846.0,0.0015042]
[1722267370896,0.2832493,67859.0,67840.0,0.147404]
[1722267370897,0.26409912,67859.0,67840.0,0.147404]
[1722267371121,0.26409912,67859.0,67838.0,0.294816]
[1722267371626,0.26409912,67859.0,67834.0,0.012614]
[1722267371831,0.26409912,67859.0,67818.0,0.294904]
[1722267371832,0.04467007,67828.0,67818.0,0.294904]
[1722267372044,0.05,67830.0,67796.0,0.10913]
[1722267372045,0.07154355,67830.0,67826.0,0.147435]
[1722267372264,0.07154355,67830.0,67827.0,0.14309939]
[1722267372265,0.09467007,67828.0,67827.0,0.14309939]
[1722267372466,0.07154355,67830.0,67814.0,0.02117546]
[1722267372467,0.09467007,67822.0,67814.0,0.02117546]
[1722267372650,0.002,67825.0,67824.0,0.14744]
[1722267372651,0.09467007,67825.0,67824.0,0.14744]
[1722267372855,0.09467007,67825.0,67824.0,0.14309939]
[1722267373065,0.09467007,67825.0,67824.0,0.29053939]
[1722267373613,0.09467007,67825.0,67824.0,0.14309939]
[1722267374043,0.002,67829.0,67824.0,0.14309939]
[1722267374044,0.09467007,67829.0,67828.0,0.147431]
[1722267374368,0.02312843,67825.0,67824.0,0.14309939]
[1722267374569,0.02312843,67825.0,67824.0,0.58541939]
[1722267374772,0.09467007,67825.0,67824.0,0.29053939]
[1722267374982,0.09467007,67825.0,67824.0,0.14309939]
[1722267375417,0.09467007,67823.0,67816.0,0.294912]
[1722267375627,0.09467007,67824.0,67823.0,0.147442]
[1722267375828,0.0831,67832.0,67823.0,0.147442]
[1722267375829,0.09467007,67827.0,67825.0,0.147437]
[1722267376049,0.002,67831.0,67823.0,0.14309939]
[1722267376050,0.09467007,67824.0,67823.0,0.14309939]
[1722267376250,0.09467007,67828.0,67823.0,0.14309939]
[1722267376455,0.0831,67832.0,67823.0,0.43798239]
[1722267376456,0.09467007,67827.0,67823.0,0.43798239]
[1722267376654,0.0831,67832.0,67824.0,0.16735]
[1722267376814,0.09467007,67829.0,67824.0,0.16735]
[1722267377009,0.09467007,67829.0,67825.0,0.147436]
[1722267377236,0.09467007,67829.0,67824.0,0.462229]
[1722267377237,0.09467007,67829.0,67827.0,0.294867]
[1722267377450,0.09467007,67829.0,67824.0,0.317879]
[1722267377451,0.09467007,67831.0,67828.0,0.14460359]
[1722267377787,0.0831,67832.0,67831.0,0.442275]
[1722267377922,0.17777007,67832.0,67831.0,0.14309939]
[1722267378961,0.0831,67832.0,67831.0,0.29052439]
[1722267379336,0.0831,67832.0,67831.0,0.14309939]
[1722267379705,0.18705707,67832.0,67831.0,0.14309939]
[1722267379922,0.18705707,67832.0,67831.0,0.29052439]
[1722267380039,0.009287,67832.0,67831.0,0.88022439]
[1722267380239,0.009287,67832.0,67831.0,0.90322439]
[1722267380605,0.0756,67840.0,67838.0,0.147409]
[1722267380731,0.0756,67840.0,67839.0,0.1489112]
[1722267380938,0.0756,67840.0,67839.0,0.4437262]
[1722267381192,0.0756,67840.0,67839.0,0.0015042]
[1722267381348,0.17027007,67840.0,67839.0,0.0015042]
[1722267381550,0.17227007,67840.0,67839.0,0.0015042]
[1722267381734,0.17227007,67840.0,67831.0,0.147425]
[1722267381735,0.09467007,67832.0,67831.0,0.147425]
[1722267381941,0.002,67836.0,67831.0,0.14309939]
[1722267381942,0.09467007,67833.0,67831.0,0.14309939]
[1722267382137,0.05,67833.0,67832.0,0.0015042]
[1722267382365,0.09467007,67833.0,67832.0,0.0015042]
[1722267382568,0.09467007,67835.0,67831.0,0.14309939]
[1722267382887,0.09467007,67835.0,67832.0,0.14421163]
[1722267382888,0.07154355,67834.0,67832.0,0.14421163]
[1722267383136,0.09467007,67835.0,67832.0,0.14421163]
[1722267383320,0.16621362,67833.0,67832.0,0.14309939]
[1722267383536,0.16621362,67833.0,67832.0,0.58687259]
[1722267383744,0.09467007,67835.0,67834.0,0.147418]
[1722267384106,0.09467007,67834.0,67833.0,0.0015042]
[1722267384511,0.09467007,67835.0,67834.0,0.147418]
[1722267384899,0.09467007,67835.0,67834.0,0.0015042]
[1722267385310,0.09667007,67835.0,67834.0,0.0015042]
[1722267385512,0.09667007,67828.0,67827.0,0.161433]
[1722267385715,0.17427007,67828.0,67827.0,0.014]
[1722267386933,0.0776,67828.0,67827.0,0.161433]
[1722267387135,0.00921063,67828.0,67827.0,0.59939939]
[1722267387345,0.0769,67833.0,67827.0,0.18009939]
[1722267387585,0.17157007,67833.0,67832.0,0.147423]
[1722267387796,0.09467007,67832.0,67831.0,0.147425]
[1722267388135,0.09467007,67831.0,67829.0,0.294857]
[1722267388337,0.09467007,67829.0,67828.0,0.170431]
[1722267388458,0.09467007,67829.0,67828.0,0.465294]
[1722267388658,0.09467007,67829.0,67828.0,0.31353039]
[1722267388856,0.09467007,67829.0,67828.0,0.29053039]
[1722267389066,0.17157007,67833.0,67828.0,0.43796239]
[1722267389464,0.17157007,67833.0,67831.0,0.014]
[1722267389690,0.17157007,67833.0,67832.0,0.147423]
[1722267389888,0.17157007,67833.0,67831.0,0.014]
[1722267390087,0.16621362,67832.0,67831.0,0.161425]
[1722267390411,0.07154355,67832.0,67831.0,0.161425]
[1722267390747,0.0769,67833.0,67832.0,0.147423]
[1722267391315,0.17157007,67833.0,67832.0,0.147423]
[1722267391592,0.17157007,67833.0,67831.0,0.00102033]
[1722267391593,0.09467007,67832.0,67831.0,0.00102033]
[1722267391826,0.09467007,67832.0,67814.0,0.00913]
[1722267391827,0.09467007,67827.0,67814.0,0.00913]
[1722267392068,0.07154355,67825.0,67815.0,0.14309939]
[1722267392294,0.07154355,67825.0,67819.0,0.294902]
[1722267392521,0.07154355,67825.0,67820.0,0.294895]
[1722267392522,0.16621362,67825.0,67820.0,0.294895]
[1722267392736,0.16621362,67825.0,67820.0,0.147447]
[1722267392737,0.09467007,67821.0,67820.0,0.147447]
[1722267392961,0.09467007,67823.0,67820.0,0.147447]
[1722267393202,0.07154355,67825.0,67820.0,0.294898]
[1722267393431,0.07154355,67825.0,67823.0,0.147441]
[1722267393646,0.09467007,67828.0,67824.0,0.14426964]
[1722267393873,0.21654355,67832.0,67827.0,0.147432]
[1722267393874,0.09467007,67829.0,67827.0,0.147432]
[1722267394109,0.21854355,67832.0,67827.0,0.29053139]
[1722267394110,0.09467007,67828.0,67827.0,0.29053139]
[1722267394324,0.13694864,67828.0,67827.0,0.29053139]
[1722267394788,0.13694864,67828.0,67820.0,0.147447]
[1722267394789,0.09467007,67823.0,67820.0,0.147447]
[1722267395046,0.00949988,67828.0,67827.0,0.4423]
[1722267395274,0.0813,67832.0,67831.0,0.442275]
[1722267395510,0.0813,67832.0,67831.0,0.58537439]
[1722267395511,0.10052247,67832.0,67831.0,0.58537439]
[1722267395746,0.01922247,67832.0,67831.0,0.88022439]
[1722267395991,0.0772,67841.0,67831.0,0.16609939]
[1722267395992,0.17187007,67841.0,67831.0,0.16609939]
[1722267396232,0.09467007,67838.0,67836.0,0.147413]
[1722267396474,0.19334554,67840.0,67832.0,0.14309939]
[1722267396475,0.09467007,67833.0,67832.0,0.14309939]
[1722267396728,0.07154355,67833.0,67832.0,0.14309939]
[1722267396952,0.07154355,67833.0,67832.0,0.29052239]
[1722267397177,0.09066482,67833.0,67832.0,0.14309939]
[1722267397415,0.09467007,67826.0,67821.0,0.023]
[1722267397657,0.09467007,67826.0,67815.0,0.0646]
[1722267397658,0.09994959,67825.0,67824.0,0.14744]
[1722267397897,0.09994959,67825.0,67824.0,0.29053939]
[1722267397898,0.09995038,67825.0,67824.0,0.29053939]
[1722267398112,0.09995038,67825.0,67824.0,0.31353939]
[1722267398113,0.17547007,67825.0,67824.0,0.31353939]
[1722267398373,0.19462072,67825.0,67824.0,0.31353939]
[1722267398989,0.09995065,67825.0,67824.0,0.31353939]
[1722267399220,0.1230791,67825.0,67824.0,0.31353939]
[1722267399427,0.20260099,67825.0,67824.0,0.31353939]
[1722267399628,0.12180099,67825.0,67824.0,0.90329939]
[1722267399831,0.12180099,67825.0,67824.0,1.19817939]
[1722267399832,0.01915065,67825.0,67824.0,1.19817939]
[1722267400041,0.0778,67832.0,67831.0,0.442275]
[1722267400253,0.0778,67832.0,67831.0,0.14309939]
[1722267400254,0.29450109,67832.0,67831.0,0.14309939]
[1722267400457,0.20932488,67832.0,67831.0,0.14309939]
[1722267400588,0.20932488,67832.0,67831.0,0.29052439]
[1722267401021,0.20932488,67832.0,67831.0,0.58537439]
[1722267401225,0.18958608,67832.0,67831.0,0.29052439]
[1722267401541,0.18958608,67832.0,67831.0,0.58537439]
[1722267401739,0.20871533,67832.0,67831.0,0.58537439]
[1722267401944,0.20871533,67832.0,67831.0,0.29052439]
[1722267402144,0.3033854,67832.0,67831.0,0.0015042]
[1722267402357,0.09467007,67829.0,67828.0,0.0015042]
[1722267402586,0.13091978,67829.0,67828.0,0.29053039]
[1722267402784,0.13091978,67829.0,67828.0,0.58539339]
[1722267402785,0.02862756,67829.0,67828.0,0.58539339]
[1722267402985,0.02862756,67829.0,67828.0,0.88025639]
[1722267403186,0.01912925,67829.0,67828.0,0.58534339]
[1722267403399,0.01910911,67831.0,67830.0,0.147427]
[1722267403616,0.10214729,67831.0,67830.0,0.31352639]
[1722267403823,0.01910873,67831.0,67830.0,0.60838039]
[1722267404036,0.14438343,67831.0,67830.0,0.60838039]
[1722267404191,0.14438343,67831.0,67830.0,1.19808839]
[1722267404192,0.02312741,67831.0,67830.0,1.19808839]
[1722267404595,0.001,67835.0,67834.0,1.031929]
[1722267404794,0.001,67835.0,67834.0,1.17502839]
[1722267404977,0.001,67835.0,67834.0,1.19802839]
[1722267405174,0.02004178,67835.0,67834.0,1.19802839]
[1722267405523,0.0778,67849.0,67848.0,0.442164]
[1722267405723,0.19860671,67849.0,67848.0,0.58526339]
[1722267405976,0.20812071,67849.0,67848.0,0.58526339]
[1722267406147,0.27423594,67849.0,67848.0,0.58676759]
[1722267406348,0.30279602,67849.0,67848.0,0.58676759]
[1722267406567,0.30279602,67849.0,67848.0,0.14309939]
[1722267406773,0.30279602,67849.0,67848.0,0.14460359]
[1722267407055,0.30279602,67849.0,67848.0,0.14309939]
[1722267407267,0.30279602,67849.0,67848.0,0.29048739]
[1722267407390,0.30279602,67849.0,67848.0,0.58526339]
[1722267407595,0.12981329,67849.0,67848.0,0.88154359]
[1722267407794,0.1529357,67849.0,67848.0,0.88154359]
[1722267408001,0.14631119,67849.0,67848.0,0.29048739]
[1722267408220,0.14631119,67849.0,67848.0,0.58526339]
[1722267408221,0.02851871,67849.0,67848.0,0.58526339]
[1722267408423,0.02851871,67849.0,67848.0,0.88003939]
[1722267408624,0.02851871,67849.0,67848.0,1.21242257]
[1722267408859,0.00951227,67849.0,67848.0,1.21242257]
[1722267409100,0.0609,67863.0,67848.0,1.21242257]
[1722267409101,0.0778,67867.0,67849.0,0.00532993]
[1722267409272,0.0778,67867.0,67866.0,0.147349]
[1722267409488,0.01897406,67867.0,67866.0,0.29044839]
[1722267409729,0.0282236,67867.0,67866.0,0.90284439]
[1722267409904,0.00924954,67867.0,67866.0,0.90284439]
[1722267410109,0.09467007,67874.0,67873.0,0.442]
[1722267410317,0.42926131,67892.0,67874.0,0.294663]
[1722267410318,0.09467007,67876.0,67874.0,0.294663]
[1722267410517,0.03111599,67875.0,67874.0,0.441994]
[1722267410719,0.09467007,67876.0,67875.0,0.441988]
[1722267410931,0.09467007,67873.0,67872.0,0.147336]
[1722267411141,0.04467007,67869.0,67868.0,0.442032]
[1722267411343,0.052,67872.0,67867.0,0.1488512]
[1722267411344,0.09467007,67868.0,67867.0,0.1488512]
[1722267411556,0.09467007,67868.0,67867.0,0.170347]
[1722267411710,0.09467007,67868.0,67867.0,0.4665452]
[1722267412073,0.17447007,67868.0,67867.0,0.0015042]
[1722267412232,0.17447007,67868.0,67863.0,0.01460718]
[1722267412233,0.09667007,67864.0,67863.0,0.01460718]
[1722267412647,0.09467007,67861.0,67860.0,0.0015042]
[1722267412947,0.09667007,67861.0,67860.0,0.14309939]
[1722267413293,0.09467007,67861.0,67860.0,0.14309939]
[1722267413548,0.09467007,67861.0,67860.0,0.14460359]
[1722267413748,0.09667007,67861.0,67860.0,0.0015042]
[1722267413934,0.07154355,67867.0,67840.0,0.1]
[1722267413935,0.09467007,67860.0,67859.0,0.0015042]
[1722267414132,0.09467007,67860.0,67857.0,0.147368]
[1722267414305,0.09467007,67859.0,67858.0,0.0015042]
[1722267414888,0.09467007,67854.0,67853.0,0.1488812]
[1722267415090,0.17517007,67854.0,67853.0,0.0015042]
[1722267415321,0.09467007,67852.0,67850.0,0.147383]
[1722267415525,0.09467007,67852.0,67851.0,0.39198459]
[1722267415695,0.09467007,67853.0,67852.0,0.147379]
[1722267415901,0.0785,67854.0,67851.0,0.24460359]
[1722267415902,0.15837007,67852.0,67851.0,0.0015042]
[1722267416121,0.15837007,67852.0,67845.0,0.0015042]
[1722267416122,0.09467007,67846.0,67845.0,0.0015042]
[1722267416372,0.09667007,67846.0,67845.0,0.0015042]
[1722267416557,0.09667007,67846.0,67845.0,0.58528239]
[1722267416558,0.00924644,67846.0,67845.0,0.58528239]
[1722267417018,0.0637,67852.0,67845.0,0.58528239]
[1722267417019,0.09467007,67847.0,67846.0,0.147392]
[1722267417200,0.09467007,67850.0,67848.0,0.147386]
[1722267417440,0.0637,67852.0,67846.0,0.14460359]
[1722267417441,0.09467007,67851.0,67849.0,0.1488892]
[1722267417586,0.09467007,67850.0,67849.0,0.0015042]
[1722267418208,0.09452207,67848.0,67847.0,0.0015042]
[1722267418411,0.09452207,67848.0,67847.0,0.14460359]
[1722267418637,0.09452207,67848.0,67847.0,0.14309939]
[1722267418838,0.09652207,67848.0,67847.0,0.14309939]
[1722267419067,0.11964379,67848.0,67847.0,0.14309939]
[1722267419240,0.04452207,67838.0,67836.0,0.67558623]
[1722267419480,0.002,67841.0,67840.0,0.147405]
[1722267419481,0.09452207,67841.0,67840.0,0.147405]
[1722267419604,0.09452207,67841.0,67840.0,0.31350439]
[1722267419805,0.09452207,67843.0,67842.0,0.147401]
[1722267419985,0.09452207,67843.0,67842.0,0.29050039]
[1722267420187,0.09452207,67843.0,67842.0,0.29200459]
[1722267420392,0.09452207,67843.0,67842.0,0.14460359]
[1722267420704,0.002,67847.0,67842.0,0.14460359]
[1722267420705,0.09452207,67844.0,67842.0,0.14309939]
[1722267420907,0.09452207,67844.0,67843.0,0.14460359]
[1722267421149,0.09452207,67846.0,67844.0,0.147396]
[1722267421462,0.002,67849.0,67840.0,0.317808]
[1722267421463,0.09452207,67842.0,67841.0,0.147401]
[1722267421670,0.09452207,67842.0,67840.0,0.01460718]
[1722267421671,0.07154355,67858.0,67842.0,0.00066907]
[1722267421886,0.0189552,67857.0,67842.0,0.14806907]
[1722267422138,0.0189552,67857.0,67840.0,0.01460718]
[1722267422139,0.0189552,67857.0,67844.0,0.06438541]
[1722267422351,0.00064773,67869.0,67846.0,0.00068676]
[1722267422487,0.07154355,67867.0,67858.0,0.00090647]
[1722267422698,0.01900242,67866.0,67858.0,0.00090647]
[1722267422909,0.0231196,67864.0,67854.0,0.14828047]
[1722267423150,0.0231196,67864.0,67854.0,0.00090647]
[1722267423451,0.0231196,67864.0,67855.0,0.14456824]
[1722267423590,0.0231196,67864.0,67856.0,0.29564647]
[1722267423931,0.0231196,67864.0,67860.0,0.00090647]
[1722267424179,0.07154355,67863.0,67860.0,0.00090647]
[1722267424599,0.07154355,67863.0,67856.0,0.14737]
[1722267424600,0.00814565,67862.0,67858.0,0.147365]
[1722267424823,0.00814565,67862.0,67859.0,0.00090647]
[1722267425025,0.07154355,67863.0,67855.0,0.294745]
[1722267425026,0.07154355,67863.0,67861.0,0.00090647]
[1722267425623,0.0231196,67864.0,67861.0,0.00090647]
[1722267425760,0.0231196,67864.0,67861.0,0.14826547]
[1722267426129,0.0817,67870.0,67861.0,0.00090647]
[1722267426409,0.07154355,67867.0,67861.0,0.14826547]
[1722267426562,0.01894284,67866.0,67861.0,0.00090647]
[1722267426763,0.07154355,67874.0,67862.0,0.14309939]
[1722267426968,0.07154355,67874.0,67869.0,0.147341]
[1722267426969,0.01894032,67873.0,67869.0,0.147341]
[1722267427172,0.01894032,67873.0,67863.0,0.00090647]
[1722267427173,0.01894032,67873.0,67864.0,0.01460718]
[1722267427378,0.07154355,67866.0,67865.0,0.14309939]
[1722267427572,0.07154355,67866.0,67864.0,0.01460718]
[1722267427784,0.07154355,67866.0,67855.0,0.0662]
[1722267428014,0.07154355,67866.0,67860.0,0.294723]
[1722267428184,0.07154355,67866.0,67863.0,0.147355]
[1722267428514,0.07154355,67866.0,67863.0,0.14309939]
[1722267429009,0.07154355,67866.0,67855.0,0.0662]
[1722267429010,0.0653,67864.0,67850.0,0.294767]
[1722267429176,0.0653,67864.0,67849.0,0.0642]
[1722267429177,0.07154355,67859.0,67854.0,0.294748]
[1722267429378,0.07154355,67859.0,67855.0,0.43784239]
[1722267429584,0.07154355,67859.0,67858.0,0.442099]
[1722267429779,0.07154355,67859.0,67858.0,0.58519839]
[1722267430168,0.07154355,67859.0,67858.0,0.29046539]
[1722267430377,0.07154355,67859.0,67852.0,0.023]
[1722267430583,0.07154355,67859.0,67849.0,0.0642]
[1722267430584,0.09466113,67859.0,67853.0,0.14309939]
[1722267430781,0.09466113,67859.0,67853.0,0.29047539]
[1722267431126,0.09466113,67859.0,67853.0,0.14309939]
[1722267431547,0.0081278,67858.0,67853.0,0.14309939]
[1722267431761,0.0081278,67858.0,67848.0,0.247387]
[1722267431762,0.02707448,67858.0,67848.0,0.247387]
[1722267431971,0.01894668,67858.0,67849.0,0.16609939]
[1722267432179,0.09466113,67859.0,67849.0,0.16609939]
[1722267432180,0.01894668,67857.0,67849.0,0.16609939]
[1722267432410,0.0189469,67857.0,67849.0,0.16609939]
[1722267432618,0.0189469,67858.0,67852.0,0.147378]
[1722267432792,0.0189469,67857.0,67852.0,0.29047739]
[1722267432989,0.0189469,67856.0,67854.0,0.147374]
[1722267433195,0.0189469,67856.0,67853.0,0.14309939]
[1722267433196,0.02311758,67859.0,67855.0,0.14309939]